[Event "Titled Tuesday Blitz January 31 Early 2023"]
[White "Vetokhin, Ilia"]
[Black "Tuleyeva-Aketayeva, Dana"]
[WhiteFideId "24156078"]
[BlackFideId "13701932"]
[WhiteElo "2305"]
[BlackElo "2130"]
[Result "1-0"]
[Round "09"]
[TimeControl "180+2"]
[Date "2023.01.31"]
[WhiteClock "0:01:19"]
[BlackClock "0:00:07"]

1. d4 {[%clk 0:03:00]}  Nf6 {[%clk 0:02:59]} 2. c4 {[%clk 0:02:59]}  e6 {[%clk 0:02:59]} 3. g3 {[%clk 0:02:59]}  Bb4+ {[%clk 0:02:56]} 4. Nd2 {[%clk 0:02:58]}  d5 {[%clk 0:02:48]} 5. Bg2 {[%clk 0:02:56]}  O-O {[%clk 0:02:35]} 6. Nf3 {[%clk 0:02:53]}  Ne4 {[%clk 0:02:30]} 7. Qc2 {[%clk 0:02:53]}  Nc6 {[%clk 0:02:13]} 8. O-O {[%clk 0:02:50]}  Nxd2 {[%clk 0:02:02]} 9. Bxd2 {[%clk 0:02:50]}  Bxd2 {[%clk 0:02:01]} 10. Qxd2 {[%clk 0:02:51]}  dxc4 {[%clk 0:02:00]} 11. a4 {[%clk 0:02:51]}  Rb8 {[%clk 0:01:43]} 12. Rac1 {[%clk 0:02:49]}  Qf6 {[%clk 0:01:31]} 13. Rxc4 {[%clk 0:02:49]}  Rd8 {[%clk 0:01:30]} 14. e3 {[%clk 0:02:48]}  Ne7 {[%clk 0:01:26]} 15. Rxc7 {[%clk 0:02:40]}  Nd5 {[%clk 0:01:23]} 16. Rc2 {[%clk 0:02:40]}  Bd7 {[%clk 0:01:22]} 17. b3 {[%clk 0:02:34]}  b5 {[%clk 0:01:20]} 18. e4 {[%clk 0:02:11]}  Ne7 {[%clk 0:00:52]} 19. e5 {[%clk 0:02:11]}  Qg6 {[%clk 0:00:46]} 20. Rc7 {[%clk 0:02:10]}  bxa4 {[%clk 0:00:37]} 21. bxa4 {[%clk 0:02:11]}  Nf5 {[%clk 0:00:29]} 22. Rxa7 {[%clk 0:02:07]}  Bc6 {[%clk 0:00:28]} 23. Nh4 {[%clk 0:01:30]}  Nxh4 {[%clk 0:00:20]} 24. Bxc6 {[%clk 0:01:31]}  Nf5 {[%clk 0:00:19]} 25. Be4 {[%clk 0:01:27]}  Rxd4 {[%clk 0:00:16]} 26. Qxd4 {[%clk 0:01:27]}  Nxd4 {[%clk 0:00:16]} 27. Bxg6 {[%clk 0:01:28]}  hxg6 {[%clk 0:00:15]} 28. Kg2 {[%clk 0:01:27]}  Rb2 {[%clk 0:00:13]} 29. a5 {[%clk 0:01:26]}  Nf5 {[%clk 0:00:10]} 30. Re1 {[%clk 0:01:23]}  Nd4 {[%clk 0:00:09]} 31. Ra8+ {[%clk 0:01:20]}  Kh7 {[%clk 0:00:09]} 32. a6 {[%clk 0:01:21]}  Ra2 {[%clk 0:00:08]} 33. Re4 {[%clk 0:01:20]}  Nc6 {[%clk 0:00:07]} 34. Rh4# {[%clk 0:01:19]} 1-0


[Site "https://www.chess.com"]

[Event "Titled Tuesday Blitz January 31 Early 2023"]
[White "Orujov, Elshad"]
[Black "Mkrtchian, Lilit"]
[WhiteFideId "13403540"]
[BlackFideId "13300601"]
[WhiteElo "2304"]
[BlackElo "2389"]
[Result "0-1"]
[Round "09"]
[TimeControl "180+2"]
[Date "2023.01.31"]
[WhiteClock "0:00:04"]
[BlackClock "0:01:35"]

1. e4 {[%clk 0:03:00]}  e6 {[%clk 0:02:59]} 2. d4 {[%clk 0:02:58]}  d5 {[%clk 0:02:59]} 3. Nd2 {[%clk 0:02:59]}  Be7 {[%clk 0:02:58]} 4. Bd3 {[%clk 0:02:58]}  c5 {[%clk 0:02:58]} 5. dxc5 {[%clk 0:02:57]}  Nf6 {[%clk 0:02:58]} 6. e5 {[%clk 0:02:52]}  Nfd7 {[%clk 0:02:57]} 7. Ngf3 {[%clk 0:02:52]}  Nxc5 {[%clk 0:02:56]} 8. O-O {[%clk 0:02:51]}  Nxd3 {[%clk 0:02:49]} 9. cxd3 {[%clk 0:02:52]}  O-O {[%clk 0:02:49]} 10. d4 {[%clk 0:02:52]}  Bd7 {[%clk 0:02:44]} 11. Nb3 {[%clk 0:02:47]}  Bb5 {[%clk 0:02:40]} 12. Re1 {[%clk 0:02:46]}  Nc6 {[%clk 0:02:40]} 13. Be3 {[%clk 0:02:45]}  Rc8 {[%clk 0:02:37]} 14. a4 {[%clk 0:02:40]}  Bc4 {[%clk 0:02:33]} 15. Nbd2 {[%clk 0:02:38]}  Bd3 {[%clk 0:02:30]} 16. Nb3 {[%clk 0:02:36]}  Bg6 {[%clk 0:02:28]} 17. Rc1 {[%clk 0:02:23]}  Nb4 {[%clk 0:02:28]} 18. Nc5 {[%clk 0:01:58]}  b6 {[%clk 0:02:22]} 19. Nb3 {[%clk 0:01:49]}  Bc2 {[%clk 0:02:13]} 20. Rxc2 {[%clk 0:01:17]}  Rxc2 {[%clk 0:02:12]} 21. Qb1 {[%clk 0:00:51]}  Qc7 {[%clk 0:02:10]} 22. h4 {[%clk 0:00:35]}  Rc8 {[%clk 0:02:05]} 23. h5 {[%clk 0:00:30]}  Nd3 {[%clk 0:01:51]} 24. Rf1 {[%clk 0:00:21]}  Qc4 {[%clk 0:01:38]} 25. Nbd2 {[%clk 0:00:08]}  Qxa4 {[%clk 0:01:36]} 26. b3 {[%clk 0:00:06]}  Qa2 {[%clk 0:01:35]} 27. Qd1 {[%clk 0:00:04]} 0-1


[Site "https://www.chess.com"]

[Event "Titled Tuesday Blitz January 31 Early 2023"]
[White "Szente Varga, Fruzsina"]
[Black "Toczek, Grzegorz"]
[WhiteFideId "712264"]
[BlackFideId "1106457"]
[WhiteElo "2075"]
[BlackElo "2260"]
[Result "0-1"]
[Round "09"]
[TimeControl "180+2"]
[Date "2023.01.31"]
[WhiteClock "0:00:13"]
[BlackClock "0:00:10"]

1. e4 {[%clk 0:03:00]}  d6 {[%clk 0:02:58]} 2. d4 {[%clk 0:02:57]}  Nf6 {[%clk 0:02:58]} 3. Nc3 {[%clk 0:02:56]}  e5 {[%clk 0:02:58]} 4. dxe5 {[%clk 0:02:54]}  dxe5 {[%clk 0:02:58]} 5. Qxd8+ {[%clk 0:02:55]}  Kxd8 {[%clk 0:02:56]} 6. Bc4 {[%clk 0:02:56]}  Be6 {[%clk 0:02:56]} 7. Bxe6 {[%clk 0:02:53]}  fxe6 {[%clk 0:02:56]} 8. Nf3 {[%clk 0:02:53]}  Nbd7 {[%clk 0:02:55]} 9. Bg5 {[%clk 0:02:53]}  Bb4 {[%clk 0:02:53]} 10. O-O-O {[%clk 0:02:46]}  Bxc3 {[%clk 0:02:52]} 11. bxc3 {[%clk 0:02:47]}  Ke7 {[%clk 0:02:53]} 12. Nd2 {[%clk 0:02:39]}  h6 {[%clk 0:02:36]} 13. Bh4 {[%clk 0:02:35]}  Nb6 {[%clk 0:02:18]} 14. Nb3 {[%clk 0:02:23]}  Na4 {[%clk 0:02:14]} 15. Rd3 {[%clk 0:02:19]}  b6 {[%clk 0:02:12]} 16. f3 {[%clk 0:02:16]}  Rad8 {[%clk 0:02:10]} 17. Rhd1 {[%clk 0:02:16]}  c5 {[%clk 0:01:59]} 18. Rxd8 {[%clk 0:02:15]}  Rxd8 {[%clk 0:01:59]} 19. Rxd8 {[%clk 0:02:16]}  Kxd8 {[%clk 0:01:59]} 20. Kd2 {[%clk 0:02:17]}  Kd7 {[%clk 0:01:55]} 21. Kd3 {[%clk 0:02:13]}  Nb2+ {[%clk 0:01:54]} 22. Kd2 {[%clk 0:02:12]}  Kc6 {[%clk 0:01:48]} 23. Nc1 {[%clk 0:02:09]}  c4 {[%clk 0:01:40]} 24. Ne2 {[%clk 0:02:03]}  Na4 {[%clk 0:01:38]} 25. Ng1 {[%clk 0:02:00]}  Nc5 {[%clk 0:01:34]} 26. Nh3 {[%clk 0:02:00]}  Kb5 {[%clk 0:01:28]} 27. Kc1 {[%clk 0:01:56]}  Na4 {[%clk 0:01:27]} 28. Kd2 {[%clk 0:01:57]}  Nc5 {[%clk 0:01:27]} 29. Kc1 {[%clk 0:01:56]}  a5 {[%clk 0:01:13]} 30. Nf2 {[%clk 0:01:53]}  Kc6 {[%clk 0:01:12]} 31. Nd1 {[%clk 0:01:52]}  b5 {[%clk 0:01:12]} 32. Ne3 {[%clk 0:01:50]}  Ncd7 {[%clk 0:01:07]} 33. Bg3 {[%clk 0:01:49]}  Kc5 {[%clk 0:01:05]} 34. Bf2 {[%clk 0:01:37]}  Kc6 {[%clk 0:01:04]} 35. Kd2 {[%clk 0:01:37]}  Nh5 {[%clk 0:00:56]} 36. Ng4 {[%clk 0:01:35]}  Nf4 {[%clk 0:00:52]} 37. Bg3 {[%clk 0:01:30]}  Ng6 {[%clk 0:00:47]} 38. h4 {[%clk 0:01:27]}  Kd6 {[%clk 0:00:45]} 39. Ke3 {[%clk 0:01:25]}  Nf6 {[%clk 0:00:42]} 40. Nf2 {[%clk 0:01:01]}  Nh5 {[%clk 0:00:41]} 41. Bh2 {[%clk 0:00:59]}  Nhf4 {[%clk 0:00:40]} 42. g3 {[%clk 0:01:00]}  Nh5 {[%clk 0:00:36]} 43. Nd1 {[%clk 0:00:47]}  Nf6 {[%clk 0:00:31]} 44. Nb2 {[%clk 0:00:47]}  Kc5 {[%clk 0:00:31]} 45. Bg1 {[%clk 0:00:45]}  b4 {[%clk 0:00:21]} 46. Kd2+ {[%clk 0:00:45]}  Kb5 {[%clk 0:00:21]} 47. cxb4 {[%clk 0:00:44]}  axb4 {[%clk 0:00:20]} 48. c3 {[%clk 0:00:45]}  b3 {[%clk 0:00:18]} 49. axb3 {[%clk 0:00:45]}  cxb3 {[%clk 0:00:19]} 50. Ba7 {[%clk 0:00:33]}  Ne7 {[%clk 0:00:18]} 51. Bb8 {[%clk 0:00:32]}  Nc6 {[%clk 0:00:18]} 52. Bd6 {[%clk 0:00:32]}  Ne8 {[%clk 0:00:18]} 53. Bf8 {[%clk 0:00:31]}  h5 {[%clk 0:00:16]} 54. c4+ {[%clk 0:00:31]}  Kb6 {[%clk 0:00:15]} 55. Kc3 {[%clk 0:00:32]}  Nd4 {[%clk 0:00:13]} 56. f4 {[%clk 0:00:32]}  Ne2+ {[%clk 0:00:12]} 57. Kxb3 {[%clk 0:00:32]}  Nxg3 {[%clk 0:00:13]} 58. fxe5 {[%clk 0:00:32]}  Nxe4 {[%clk 0:00:13]} 59. Kb4 {[%clk 0:00:31]}  Kc6 {[%clk 0:00:12]} 60. Nd3 {[%clk 0:00:30]}  Ng3 {[%clk 0:00:12]} 61. Nf4 {[%clk 0:00:28]}  Nf5 {[%clk 0:00:12]} 62. Nxh5 {[%clk 0:00:26]}  Nxh4 {[%clk 0:00:11]} 63. Kc3 {[%clk 0:00:19]}  Ng6 {[%clk 0:00:11]} 64. Kd4 {[%clk 0:00:19]}  Nxf8 {[%clk 0:00:10]} 65. Nf4 {[%clk 0:00:20]}  Kd7 {[%clk 0:00:10]} 66. Ke4 {[%clk 0:00:19]}  g5 {[%clk 0:00:10]} 67. Nd3 {[%clk 0:00:19]}  Ng6 {[%clk 0:00:11]} 68. Nc5+ {[%clk 0:00:19]}  Ke7 {[%clk 0:00:11]} 69. Nd3 {[%clk 0:00:18]}  Ng7 {[%clk 0:00:11]} 70. c5 {[%clk 0:00:18]}  Nf5 {[%clk 0:00:12]} 71. c6 {[%clk 0:00:19]}  Nf4 {[%clk 0:00:11]} 72. Nc5 {[%clk 0:00:18]}  Ng3+ {[%clk 0:00:09]} 73. Kd4 {[%clk 0:00:17]}  Nge2+ {[%clk 0:00:09]} 74. Ke4 {[%clk 0:00:17]}  Nd5 {[%clk 0:00:09]} 75. Nb7 {[%clk 0:00:16]}  Nec3+ {[%clk 0:00:08]} 76. Kd4 {[%clk 0:00:16]}  Nb5+ {[%clk 0:00:08]} 77. Kc5 {[%clk 0:00:17]}  Nbc7 {[%clk 0:00:09]} 78. Nd6 {[%clk 0:00:16]}  g4 {[%clk 0:00:09]} 79. Ne4 {[%clk 0:00:17]}  Kf7 {[%clk 0:00:10]} 80. Kd6 {[%clk 0:00:16]}  Kg6 {[%clk 0:00:10]} 81. Nc5 {[%clk 0:00:16]}  Kf5 {[%clk 0:00:10]} 82. Nxe6 {[%clk 0:00:11]}  Nxe6 {[%clk 0:00:10]} 83. Kxd5 {[%clk 0:00:11]}  g3 {[%clk 0:00:10]} 84. Kd6 {[%clk 0:00:11]}  g2 {[%clk 0:00:10]} 85. c7 {[%clk 0:00:11]}  Nxc7 {[%clk 0:00:10]} 86. Kxc7 {[%clk 0:00:12]}  Kxe5 {[%clk 0:00:10]} 87. Kd7 {[%clk 0:00:12]}  g1=Q {[%clk 0:00:10]} 88. Ke7 {[%clk 0:00:13]} 0-1


[Site "https://www.chess.com"]

[Event "Titled Tuesday Blitz January 31 Early 2023"]
[White "Sai Han Thiha"]
[Black "SicilianPanzer"]
[WhiteFideId "13012290"]
[WhiteElo "2070"]
[BlackElo "2195"]
[Result "1-0"]
[Round "09"]
[TimeControl "180+2"]
[Date "2023.01.31"]
[WhiteClock "0:00:17"]
[BlackClock "0:00:01"]

1. d4 {[%clk 0:03:00]}  Nf6 {[%clk 0:02:58]} 2. c4 {[%clk 0:03:01]}  e6 {[%clk 0:02:58]} 3. Nf3 {[%clk 0:03:01]}  a6 {[%clk 0:02:57]} 4. Nc3 {[%clk 0:02:59]}  d5 {[%clk 0:02:56]} 5. cxd5 {[%clk 0:02:44]}  exd5 {[%clk 0:02:56]} 6. Bg5 {[%clk 0:02:44]}  c6 {[%clk 0:02:41]} 7. e3 {[%clk 0:02:44]}  Bd6 {[%clk 0:02:34]} 8. Bd3 {[%clk 0:02:44]}  Be6 {[%clk 0:02:32]} 9. Ne5 {[%clk 0:02:44]}  Nbd7 {[%clk 0:02:31]} 10. f4 {[%clk 0:02:43]}  h6 {[%clk 0:02:23]} 11. Bh4 {[%clk 0:02:38]}  g5 {[%clk 0:02:10]} 12. fxg5 {[%clk 0:02:09]}  hxg5 {[%clk 0:02:06]} 13. Bg3 {[%clk 0:02:09]}  Qc7 {[%clk 0:01:59]} 14. Rf1 {[%clk 0:00:46]}  Nxe5 {[%clk 0:01:55]} 15. dxe5 {[%clk 0:00:45]}  Bxe5 {[%clk 0:01:33]} 16. Rxf6 {[%clk 0:00:45]}  Bxg3+ {[%clk 0:01:23]} 17. hxg3 {[%clk 0:00:46]}  Qxg3+ {[%clk 0:01:23]} 18. Rf2 {[%clk 0:00:44]}  Rh1+ {[%clk 0:01:05]} 19. Bf1 {[%clk 0:00:44]}  Qxe3+ {[%clk 0:00:39]} 20. Qe2 {[%clk 0:00:41]}  Qb6 {[%clk 0:00:37]} 21. O-O-O {[%clk 0:00:39]}  O-O-O {[%clk 0:00:36]} 22. Na4 {[%clk 0:00:26]}  Qb4 {[%clk 0:00:27]} 23. Qc2 {[%clk 0:00:25]}  d4 {[%clk 0:00:09]} 24. a3 {[%clk 0:00:20]}  Qd6 {[%clk 0:00:07]} 25. Nc5 {[%clk 0:00:20]}  Qg3 {[%clk 0:00:03]} 26. Bd3 {[%clk 0:00:17]}  Qe3+ {[%clk 0:00:02]} 27. Rd2 {[%clk 0:00:15]}  Rxd1+ {[%clk 0:00:02]} 28. Qxd1 {[%clk 0:00:16]}  Bd5 {[%clk 0:00:01]} 29. Qe2 {[%clk 0:00:16]}  Qxe2 {[%clk 0:00:01]} 30. Rxe2 {[%clk 0:00:17]} 1-0


[Site "https://www.chess.com"]

[Event "Titled Tuesday Blitz January 31 Early 2023"]
[White "Zacurdajev, Dmitry"]
[Black "Ruiz Aguilar, Pablo Alexander"]
[WhiteFideId "4196309"]
[BlackFideId "4401352"]
[WhiteElo "2273"]
[BlackElo "2161"]
[Result "0-1"]
[Round "09"]
[TimeControl "180+2"]
[Date "2023.01.31"]
[WhiteClock "0:00:18"]
[BlackClock "0:00:53"]

1. d4 {[%clk 0:02:58]}  d5 {[%clk 0:02:59]} 2. c4 {[%clk 0:02:58]}  c6 {[%clk 0:02:59]} 3. Nc3 {[%clk 0:02:57]}  Nf6 {[%clk 0:02:59]} 4. Nf3 {[%clk 0:02:57]}  e6 {[%clk 0:02:59]} 5. Bg5 {[%clk 0:02:57]}  Be7 {[%clk 0:02:59]} 6. e3 {[%clk 0:02:55]}  Nbd7 {[%clk 0:02:59]} 7. Qc2 {[%clk 0:02:56]}  O-O {[%clk 0:03:00]} 8. Rd1 {[%clk 0:02:55]}  b6 {[%clk 0:02:58]} 9. Bd3 {[%clk 0:02:55]}  Bb7 {[%clk 0:02:57]} 10. cxd5 {[%clk 0:02:54]}  exd5 {[%clk 0:02:56]} 11. O-O {[%clk 0:02:54]}  Re8 {[%clk 0:02:55]} 12. Rb1 {[%clk 0:02:38]}  Nf8 {[%clk 0:02:55]} 13. b4 {[%clk 0:02:37]}  a6 {[%clk 0:02:55]} 14. a4 {[%clk 0:02:36]}  g6 {[%clk 0:02:51]} 15. Ne5 {[%clk 0:02:33]}  Ne6 {[%clk 0:02:50]} 16. Bh4 {[%clk 0:02:30]}  Rc8 {[%clk 0:02:50]} 17. Qe2 {[%clk 0:02:23]}  Ra8 {[%clk 0:02:34]} 18. f4 {[%clk 0:02:15]}  Nd7 {[%clk 0:02:20]} 19. Bxe7 {[%clk 0:02:11]}  Qxe7 {[%clk 0:02:20]} 20. f5 {[%clk 0:01:53]}  Ng5 {[%clk 0:02:14]} 21. Nxd7 {[%clk 0:01:47]}  Qxd7 {[%clk 0:02:14]} 22. Rbe1 {[%clk 0:01:35]}  c5 {[%clk 0:01:49]} 23. bxc5 {[%clk 0:01:32]}  bxc5 {[%clk 0:01:49]} 24. Qg4 {[%clk 0:01:29]}  Ne4 {[%clk 0:01:41]} 25. Bxe4 {[%clk 0:01:15]}  dxe4 {[%clk 0:01:41]} 26. dxc5 {[%clk 0:01:15]}  Rac8 {[%clk 0:01:31]} 27. Rd1 {[%clk 0:01:03]}  Qe7 {[%clk 0:01:18]} 28. f6 {[%clk 0:00:28]}  Qxc5 {[%clk 0:01:17]} 29. Qh4 {[%clk 0:00:21]}  Qxe3+ {[%clk 0:01:05]} 30. Kh1 {[%clk 0:00:20]}  Rxc3 {[%clk 0:00:57]} 31. Rde1 {[%clk 0:00:21]}  Qc5 {[%clk 0:00:56]} 32. Qh6 {[%clk 0:00:19]}  Qf8 {[%clk 0:00:56]} 33. Qd2 {[%clk 0:00:20]}  Rd3 {[%clk 0:00:55]} 34. Qb4 {[%clk 0:00:18]}  Qxb4 {[%clk 0:00:53]} 0-1


[Site "https://www.chess.com"]

[Event "Titled Tuesday Blitz January 31 Early 2023"]
[White "Martin, Lewis"]
[Black "Belenkaya, Dina"]
[WhiteFideId "410551"]
[BlackFideId "24142654"]
[WhiteElo "2135"]
[BlackElo "2267"]
[Result "1-0"]
[Round "09"]
[TimeControl "180+2"]
[Date "2023.01.31"]
[WhiteClock "0:01:05"]
[BlackClock "0:00:10"]

1. e4 {[%clk 0:02:48]}  d5 {[%clk 0:02:57]} 2. exd5 {[%clk 0:02:45]}  Qxd5 {[%clk 0:02:58]} 3. Nc3 {[%clk 0:02:45]}  Qe5+ {[%clk 0:02:57]} 4. Qe2 {[%clk 0:02:41]}  Qxe2+ {[%clk 0:02:55]} 5. Bxe2 {[%clk 0:02:40]}  Nf6 {[%clk 0:02:56]} 6. Nf3 {[%clk 0:02:40]}  c6 {[%clk 0:02:53]} 7. O-O {[%clk 0:02:38]}  Bf5 {[%clk 0:02:46]} 8. d3 {[%clk 0:02:36]}  Nbd7 {[%clk 0:02:34]} 9. Re1 {[%clk 0:02:36]}  e6 {[%clk 0:02:33]} 10. Bf4 {[%clk 0:02:35]}  Be7 {[%clk 0:02:31]} 11. h3 {[%clk 0:02:34]}  h6 {[%clk 0:02:31]} 12. a4 {[%clk 0:02:29]}  O-O-O {[%clk 0:02:20]} 13. a5 {[%clk 0:02:28]}  g5 {[%clk 0:02:13]} 14. Bh2 {[%clk 0:02:26]}  Bb4 {[%clk 0:02:12]} 15. a6 {[%clk 0:02:21]}  Rhe8 {[%clk 0:00:58]} 16. axb7+ {[%clk 0:02:14]}  Kxb7 {[%clk 0:00:59]} 17. Nd4 {[%clk 0:02:06]}  Bg6 {[%clk 0:00:55]} 18. Bf3 {[%clk 0:02:05]}  Nd5 {[%clk 0:00:50]} 19. Nxd5 {[%clk 0:01:47]}  exd5 {[%clk 0:00:51]} 20. Rxe8 {[%clk 0:01:44]}  Rxe8 {[%clk 0:00:51]} 21. c4 {[%clk 0:01:35]}  Bc5 {[%clk 0:00:20]} 22. Nb3 {[%clk 0:01:27]}  Bxd3 {[%clk 0:00:19]} 23. cxd5 {[%clk 0:01:25]}  Be4 {[%clk 0:00:19]} 24. Bxe4 {[%clk 0:01:20]}  Rxe4 {[%clk 0:00:20]} 25. Na5+ {[%clk 0:01:17]}  Kb6 {[%clk 0:00:18]} 26. dxc6 {[%clk 0:01:14]}  Ne5 {[%clk 0:00:19]} 27. Bxe5 {[%clk 0:01:09]}  Bb4 {[%clk 0:00:10]} 28. c7 {[%clk 0:01:05]} 1-0


[Site "https://www.chess.com"]

[Event "Titled Tuesday Blitz January 31 Early 2023"]
[White "Corredor Castellanos, Camilo"]
[Black "Oglaza, Oskar"]
[WhiteFideId "4425871"]
[BlackFideId "1194402"]
[WhiteElo "1957"]
[BlackElo "2304"]
[Result "1-0"]
[Round "09"]
[TimeControl "180+2"]
[Date "2023.01.31"]
[WhiteClock "0:00:40"]
[BlackClock "0:00:01"]

1. d4 {[%clk 0:03:00]}  Nf6 {[%clk 0:02:55]} 2. c4 {[%clk 0:03:00]}  e6 {[%clk 0:02:52]} 3. Nf3 {[%clk 0:03:01]}  b6 {[%clk 0:02:52]} 4. g3 {[%clk 0:03:01]}  Bb7 {[%clk 0:02:52]} 5. Bg2 {[%clk 0:03:01]}  Bb4+ {[%clk 0:02:51]} 6. Bd2 {[%clk 0:03:01]}  a5 {[%clk 0:02:51]} 7. O-O {[%clk 0:03:01]}  O-O {[%clk 0:02:49]} 8. Qc2 {[%clk 0:03:01]}  c5 {[%clk 0:02:40]} 9. a3 {[%clk 0:02:59]}  Bxd2 {[%clk 0:02:39]} 10. Nbxd2 {[%clk 0:02:59]}  cxd4 {[%clk 0:02:37]} 11. Nxd4 {[%clk 0:02:59]}  Bxg2 {[%clk 0:02:37]} 12. Kxg2 {[%clk 0:03:00]}  Nc6 {[%clk 0:02:37]} 13. Nb5 {[%clk 0:02:59]}  Qe7 {[%clk 0:02:25]} 14. Ne4 {[%clk 0:02:57]}  Nxe4 {[%clk 0:02:22]} 15. Qxe4 {[%clk 0:02:58]}  Rac8 {[%clk 0:02:22]} 16. Rac1 {[%clk 0:02:55]}  Rfd8 {[%clk 0:02:16]} 17. Rfd1 {[%clk 0:02:45]}  Qc5 {[%clk 0:02:03]} 18. e3 {[%clk 0:02:38]}  f5 {[%clk 0:01:57]} 19. Qf4 {[%clk 0:02:10]}  Ne7 {[%clk 0:01:21]} 20. Qd6 {[%clk 0:01:56]}  Qxd6 {[%clk 0:01:18]} 21. Rxd6 {[%clk 0:01:57]}  Rc6 {[%clk 0:01:12]} 22. Rd4 {[%clk 0:01:55]}  d5 {[%clk 0:00:35]} 23. Rcd1 {[%clk 0:01:55]}  Rc5 {[%clk 0:00:31]} 24. Nc3 {[%clk 0:01:38]}  e5 {[%clk 0:00:25]} 25. R4d2 {[%clk 0:01:24]}  Rxc4 {[%clk 0:00:15]} 26. Nxd5 {[%clk 0:01:22]}  Nxd5 {[%clk 0:00:13]} 27. Rxd5 {[%clk 0:01:22]}  Rxd5 {[%clk 0:00:13]} 28. Rxd5 {[%clk 0:01:23]}  Rc5 {[%clk 0:00:12]} 29. Rd7 {[%clk 0:01:03]}  Rb5 {[%clk 0:00:11]} 30. b4 {[%clk 0:01:00]}  axb4 {[%clk 0:00:11]} 31. axb4 {[%clk 0:01:01]}  Rxb4 {[%clk 0:00:11]} 32. Rd5 {[%clk 0:01:02]}  Re4 {[%clk 0:00:11]} 33. Rb5 {[%clk 0:01:00]}  Rc4 {[%clk 0:00:07]} 34. Rxe5 {[%clk 0:00:58]}  g6 {[%clk 0:00:06]} 35. Re7 {[%clk 0:00:57]}  Rb4 {[%clk 0:00:06]} 36. Rb7 {[%clk 0:00:57]}  b5 {[%clk 0:00:06]} 37. Kf3 {[%clk 0:00:56]}  Rb3 {[%clk 0:00:05]} 38. Kf4 {[%clk 0:00:55]}  Rb2 {[%clk 0:00:05]} 39. f3 {[%clk 0:00:53]}  b4 {[%clk 0:00:04]} 40. h4 {[%clk 0:00:52]}  b3 {[%clk 0:00:04]} 41. Kg5 {[%clk 0:00:52]}  Re2 {[%clk 0:00:02]} 42. Rxb3 {[%clk 0:00:51]}  Rf2 {[%clk 0:00:02]} 43. Kf4 {[%clk 0:00:48]}  Kg7 {[%clk 0:00:02]} 44. h5 {[%clk 0:00:47]}  Kf6 {[%clk 0:00:01]} 45. Rb6+ {[%clk 0:00:46]}  Kf7 {[%clk 0:00:01]} 46. h6 {[%clk 0:00:41]}  Rh2 {[%clk 0:00:01]} 47. Rb7+ {[%clk 0:00:40]} 1-0


[Site "https://www.chess.com"]

[Event "Titled Tuesday Blitz January 31 Early 2023"]
[White "Ardila, Oscar Humberto"]
[Black "Prieto Aranguren, Alain"]
[WhiteFideId "4404742"]
[BlackFideId "2268906"]
[WhiteElo "1982"]
[BlackElo "2258"]
[Result "0-1"]
[Round "09"]
[TimeControl "180+2"]
[Date "2023.01.31"]
[WhiteClock "0:00:09"]
[BlackClock "0:00:24"]

1. d4 {[%clk 0:03:00]}  c6 {[%clk 0:02:57]} 2. c4 {[%clk 0:03:00]}  d6 {[%clk 0:02:56]} 3. Nf3 {[%clk 0:02:59]}  Bg4 {[%clk 0:02:55]} 4. e3 {[%clk 0:02:58]}  Na6 {[%clk 0:02:54]} 5. Be2 {[%clk 0:02:57]}  Nf6 {[%clk 0:02:54]} 6. h3 {[%clk 0:02:57]}  Bh5 {[%clk 0:02:53]} 7. O-O {[%clk 0:02:57]}  e6 {[%clk 0:02:52]} 8. b3 {[%clk 0:02:57]}  Be7 {[%clk 0:02:52]} 9. Bb2 {[%clk 0:02:57]}  O-O {[%clk 0:02:52]} 10. Nbd2 {[%clk 0:02:54]}  Rc8 {[%clk 0:02:50]} 11. Rc1 {[%clk 0:02:53]}  Qa5 {[%clk 0:02:49]} 12. a3 {[%clk 0:02:49]}  d5 {[%clk 0:02:47]} 13. b4 {[%clk 0:02:45]}  Qd8 {[%clk 0:02:47]} 14. Qb3 {[%clk 0:02:42]}  Ne4 {[%clk 0:02:45]} 15. g4 {[%clk 0:02:35]}  Nxd2 {[%clk 0:02:42]} 16. Nxd2 {[%clk 0:02:34]}  Bg6 {[%clk 0:02:42]} 17. c5 {[%clk 0:02:30]}  Nc7 {[%clk 0:02:41]} 18. a4 {[%clk 0:02:29]}  Bh4 {[%clk 0:02:38]} 19. Nf3 {[%clk 0:02:25]}  Be4 {[%clk 0:02:36]} 20. Ne1 {[%clk 0:02:03]}  Ne8 {[%clk 0:02:20]} 21. Bf3 {[%clk 0:02:02]}  Nf6 {[%clk 0:02:18]} 22. Bg2 {[%clk 0:02:00]}  h5 {[%clk 0:02:14]} 23. Qd1 {[%clk 0:01:51]}  hxg4 {[%clk 0:02:12]} 24. hxg4 {[%clk 0:01:51]}  Bxg2 {[%clk 0:02:12]} 25. Nxg2 {[%clk 0:01:50]}  Ne4 {[%clk 0:02:12]} 26. Bc3 {[%clk 0:01:34]}  f5 {[%clk 0:02:10]} 27. Be1 {[%clk 0:01:31]}  Kf7 {[%clk 0:02:03]} 28. f3 {[%clk 0:01:31]}  Bxe1 {[%clk 0:02:01]} 29. Qxe1 {[%clk 0:01:30]}  Nf6 {[%clk 0:01:57]} 30. gxf5 {[%clk 0:01:23]}  exf5 {[%clk 0:01:56]} 31. Qg3 {[%clk 0:01:23]}  Rh8 {[%clk 0:01:55]} 32. Nf4 {[%clk 0:01:22]}  Rh6 {[%clk 0:01:52]} 33. Kf2 {[%clk 0:01:21]}  Qh8 {[%clk 0:01:44]} 34. Ng2 {[%clk 0:01:18]}  Rh2 {[%clk 0:01:36]} 35. b5 {[%clk 0:01:11]}  Qh3 {[%clk 0:01:28]} 36. Qxh3 {[%clk 0:01:08]}  Rxh3 {[%clk 0:01:28]} 37. bxc6 {[%clk 0:01:08]}  bxc6 {[%clk 0:01:28]} 38. Rb1 {[%clk 0:01:08]}  Rc7 {[%clk 0:01:27]} 39. Rb8 {[%clk 0:01:07]}  Nh5 {[%clk 0:01:20]} 40. a5 {[%clk 0:01:06]}  Kf6 {[%clk 0:01:10]} 41. a6 {[%clk 0:01:05]}  g5 {[%clk 0:01:06]} 42. Rb7 {[%clk 0:01:04]}  Rg7 {[%clk 0:01:04]} 43. Rfb1 {[%clk 0:00:57]}  g4 {[%clk 0:01:03]} 44. Rxg7 {[%clk 0:00:54]}  Rxf3+ {[%clk 0:01:01]} 45. Ke2 {[%clk 0:00:52]}  Ng3+ {[%clk 0:00:57]} 46. Kd3 {[%clk 0:00:50]}  Kxg7 {[%clk 0:00:56]} 47. Rb7+ {[%clk 0:00:50]}  Kf6 {[%clk 0:00:56]} 48. Rxa7 {[%clk 0:00:50]}  Rf2 {[%clk 0:00:53]} 49. Nf4 {[%clk 0:00:44]}  Ne4 {[%clk 0:00:47]} 50. Ne2 {[%clk 0:00:37]}  g3 {[%clk 0:00:47]} 51. Ra8 {[%clk 0:00:31]}  g2 {[%clk 0:00:46]} 52. Rg8 {[%clk 0:00:31]}  Kf7 {[%clk 0:00:45]} 53. a7 {[%clk 0:00:11]}  Kxg8 {[%clk 0:00:30]} 54. a8=Q+ {[%clk 0:00:11]}  Kg7 {[%clk 0:00:29]} 55. Qa7+ {[%clk 0:00:11]}  Kg6 {[%clk 0:00:29]} 56. Qb6 {[%clk 0:00:10]}  g1=Q {[%clk 0:00:25]} 57. Qxc6+ {[%clk 0:00:09]}  Kg5 {[%clk 0:00:25]} 58. Nxg1 {[%clk 0:00:09]}  Rd2# {[%clk 0:00:24]} 0-1


[Site "https://www.chess.com"]